[Event "Pervenstvo PFO 2023_Y19_Rapid"]
[Site "Samara region, Russia"]
[Date "2023.11.11"]
[Round "6.10"]
[White "Rekonchishek, Egor"]
[Black "Ermakov, Maxim"]
[Result "0-1"]
[TimeControl "10:5"]
[WhiteFideId "34221476"]
[BlackFideId "54174996"]
[WhiteElo "1569"]
[BlackElo "1766"]

1. d4 {[%clk 00:10:09]} Nf6 {[%clk 00:10:09]} {[%emt 00:00:02]} 2. Nf3 {[%clk
00:10:13]} {[%emt 00:00:01]} c5 {[%clk 00:10:12]} {[%emt 00:00:02]} 3. c3
{[%clk 00:10:17]} cxd4 {[%clk 00:10:06]} {[%emt 00:00:12]} 4. cxd4 {[%clk
00:10:21]} {[%emt 00:00:01]} d6 {[%clk 00:10:07]} {[%emt 00:00:04]} 5. Nc3
{[%clk 00:10:25]} g6 {[%clk 00:10:09]} {[%emt 00:00:03]} 6. Bf4 {[%clk
00:09:53]} {[%emt 00:00:36]} Bg7 {[%clk 00:10:10]} {[%emt 00:00:05]} 7. e3
{[%clk 00:09:57]} O-O {[%clk 00:10:13]} {[%emt 00:00:02]} 8. h3 {[%clk
00:10:00]} {[%emt 00:00:02]} Qb6 {[%clk 00:10:10]} {[%emt 00:00:08]} 9. Qd2
{[%clk 00:09:54]} {[%emt 00:00:12]} Nc6 {[%clk 00:10:01]} {[%emt 00:00:14]} 10.
Be2 {[%clk 00:09:56]} {[%emt 00:00:03]} Re8 {[%clk 00:09:33]} {[%emt 00:00:32]}
11. Bh2 {[%clk 00:09:10]} {[%emt 00:00:51]} e5 {[%clk 00:08:42]} {[%emt
00:00:57]} 12. d5 {[%clk 00:08:24]} {[%emt 00:00:50]} Nb8 {[%clk 00:06:19]}
{[%emt 00:02:28]} 13. e4 {[%clk 00:08:19]} {[%emt 00:00:09]} Nbd7 {[%clk
00:06:23]} {[%emt 00:00:01]} 14. O-O {[%clk 00:07:10]} {[%emt 00:01:15]} Nc5
{[%clk 00:06:27]} 15. Qc2 {[%clk 00:07:10]} {[%emt 00:00:04]} Bd7 {[%clk
00:06:25]} {[%emt 00:00:08]} 16. Nd2 {[%clk 00:07:11]} {[%emt 00:00:03]} Rac8
{[%clk 00:05:56]} {[%emt 00:00:34]} 17. Kh1 {[%clk 00:06:34]} {[%emt 00:00:42]}
Nfxe4 {[%clk 00:00:47]} {[%emt 00:05:15]} 18. Ndxe4 {[%clk 00:04:32]} {[%emt
00:02:06]} Nxe4 {[%clk 00:00:50]} {[%emt 00:00:02]} 19. Qxe4 {[%clk 00:04:28]}
{[%emt 00:00:10]} Qxb2 {[%clk 00:00:54]} {[%emt 00:00:01]} 20. Rab1 {[%clk
00:02:09]} {[%emt 00:02:24]} Qxc3 {[%clk 00:00:54]} {[%emt 00:00:05]} 21. Rxb7
{[%clk 00:02:13]} {[%emt 00:00:01]} Bf5 {[%clk 00:00:41]} {[%emt 00:00:18]} 22.
Qa4 {[%clk 00:02:17]} {[%emt 00:00:02]} a5 {[%clk 00:00:38]} {[%emt 00:00:09]}
23. Rb3 {[%clk 00:00:40]} {[%emt 00:01:41]} Qc5 {[%clk 00:00:25]} {[%emt
00:00:16]} 24. Rb5 {[%clk 00:00:42]} {[%emt 00:00:05]} Qc2 {[%clk 00:00:29]} 25.
Bd1 {[%clk 00:00:16]} {[%emt 00:00:30]} Qxa4 26. Bxa4 {[%clk 00:00:21]} Bd3
{[%clk 00:00:20]} 27. Rbb1 {[%clk 00:00:18]} {[%emt 00:00:08]} Bxf1 {[%clk
00:00:23]} {[%emt 00:00:02]} 28. Bxe8 {[%clk 00:00:22]} {[%emt 00:00:01]} Bxg2+
{[%clk 00:00:26]} {[%emt 00:00:02]} 29. Kxg2 {[%clk 00:00:26]} Rxe8 {[%clk
00:00:31]} 30. Rb6 {[%clk 00:00:29]} {[%emt 00:00:02]} Bf8 {[%clk 00:00:25]}
{[%emt 00:00:11]} 31. Ra6 {[%clk 00:00:34]} {[%emt 00:00:01]} Rc8 {[%clk
00:00:25]} {[%emt 00:00:04]} 32. Rxa5 {[%clk 00:00:37]} {[%emt 00:00:02]} Rc2
{[%clk 00:00:29]} 33. Bg3 {[%clk 00:00:35]} {[%emt 00:00:08]} g5 {[%clk
00:00:25]} {[%emt 00:00:09]} 34. h4 {[%clk 00:00:34]} {[%emt 00:00:06]} h6
{[%clk 00:00:29]} 35. hxg5 {[%clk 00:00:39]} {[%emt 00:00:01]} hxg5 {[%clk
00:00:33]} 36. a4 {[%clk 00:00:10]} {[%emt 00:00:33]} Rd2 {[%clk 00:00:37]}
{[%emt 00:00:02]} 37. Kf3 {[%clk 00:00:10]} {[%emt 00:00:05]} f5 {[%clk
00:00:36]} {[%emt 00:00:06]} 38. Ke3 {[%clk 00:00:14]} Rd1 {[%clk 00:00:32]}
{[%emt 00:00:09]} 39. Ke2 {[%clk 00:00:12]} {[%emt 00:00:07]} Rd4 {[%clk
00:00:35]} {[%emt 00:00:01]} 40. f3 {[%clk 00:00:13]} {[%emt 00:00:05]} g4
{[%clk 00:00:33]} {[%emt 00:00:06]} 41. Bf2 {[%clk 00:00:16]} {[%emt 00:00:03]}
gxf3+ {[%clk 00:00:36]} {[%emt 00:00:02]} 42. Kxf3 {[%clk 00:00:19]} {[%emt
00:00:02]} Rd3+ {[%clk 00:00:39]} {[%emt 00:00:02]} 43. Ke2 {[%clk 00:00:23]}
{[%emt 00:00:01]} e4 {[%clk 00:00:40]} {[%emt 00:00:03]} 44. Rb5 {[%clk
00:00:17]} {[%emt 00:00:11]} f4 {[%clk 00:00:43]} {[%emt 00:00:03]} 45. Bh4
{[%clk 00:00:18]} {[%emt 00:00:04]} f3+ {[%emt 00:00:03]} 46. Ke1 e3 {[%clk
00:00:44]} {[%emt 00:00:06]} 47. a5 {[%clk 00:00:10]} {[%emt 00:00:17]} Bg7
{[%clk 00:00:36]} {[%emt 00:00:12]} 48. Rb1 {[%clk 00:00:08]} {[%emt 00:00:07]}
Bc3+ {[%clk 00:00:35]} {[%emt 00:00:06]} 49. Kf1 {[%clk 00:00:13]} {[%emt
00:00:01]} e2+ {[%clk 00:00:36]} {[%emt 00:00:05]} 50. Kf2 {[%clk 00:00:12]}
{[%emt 00:00:04]} e1=Q+ {[%clk 00:00:36]} {[%emt 00:00:06]} 51. Rxe1 {[%clk
00:00:15]} {[%emt 00:00:01]} Bxe1+ {[%clk 00:00:40]} {[%emt 00:00:02]} 52. Kxe1
{[%clk 00:00:19]} Ra3 {[%clk 00:00:44]} 53. Bd8 {[%clk 00:00:22]} {[%emt
00:00:02]} Kf7 {[%clk 00:00:41]} {[%emt 00:00:08]} 54. Kf1 {[%clk 00:00:21]}
{[%emt 00:00:05]} Kg6 {[%clk 00:00:45]} {[%emt 00:00:01]} 55. Bc7 {[%clk
00:00:25]} {[%emt 00:00:01]} Kf5 {[%clk 00:00:49]} 56. Kf2 {[%clk 00:00:19]}
{[%emt 00:00:11]} Ke4 {[%clk 00:00:50]} {[%emt 00:00:03]} 57. Bxd6 {[%clk
00:00:10]} {[%emt 00:00:14]} Ra2+ {[%clk 00:00:55]} 58. Kf1 {[%clk 00:00:14]}
{[%emt 00:00:01]} Rxa5 {[%clk 00:00:58]} {[%emt 00:00:02]} 59. Bb4 {[%clk
00:00:15]} {[%emt 00:00:03]} Rxd5 {[%clk 00:01:00]} {[%emt 00:00:04]} 60. Be1
{[%clk 00:00:19]} Rd1 {[%clk 00:00:56]} {[%emt 00:00:09]} 61. Kf2 {[%clk
00:00:20]} {[%emt 00:00:04]} Rxe1 {[%clk 00:00:53]} {[%emt 00:00:08]} 62. Kxe1
{[%clk 00:00:21]} {[%emt 00:00:03]} Ke3 {[%clk 00:00:57]} 63. Kf1 {[%clk
00:00:25]} f2 {[%clk 00:01:02]} 64. Kg2 {[%clk 00:00:27]} {[%emt 00:00:04]} Ke2
{[%clk 00:01:06]} {[%emt 00:00:01]} 0-1

[ePGN "0.1;DGT LiveChess/2.2.5"]

[Event "Pervenstvo PFO 2023_Y19_Rapid"]
[Site "Samara region, Russia"]
[Date "2023.11.11"]
[Round "7.1"]
[White "Lydin, Vladislav"]
[Black "Konstantinov, Nikita"]
[Result "0-1"]
[TimeControl "10:5"]
[WhiteFideId "44195990"]
[BlackFideId "44165250"]
[WhiteElo "2005"]
[BlackElo "2074"]

1. Nf3 {[%clk 00:10:08]} d5 {[%clk 00:10:07]} {[%emt 00:00:04]} 2. g3 {[%clk
00:10:12]} Nf6 {[%clk 00:10:09]} {[%emt 00:00:04]} 3. Bg2 {[%clk 00:10:16]} e6
{[%clk 00:10:11]} {[%emt 00:00:03]} 4. O-O {[%clk 00:10:19]} Be7 {[%clk
00:10:15]} {[%emt 00:00:01]} 5. c4 {[%clk 00:10:23]} {[%emt 00:00:02]} O-O
{[%clk 00:10:17]} {[%emt 00:00:03]} 6. b3 {[%clk 00:10:25]} {[%emt 00:00:02]}
b6 {[%clk 00:10:08]} {[%emt 00:00:15]} 7. Bb2 {[%clk 00:10:26]} {[%emt
00:00:04]} Bb7 {[%clk 00:10:11]} {[%emt 00:00:01]} 8. d3 {[%clk 00:10:26]}
{[%emt 00:00:05]} Nbd7 {[%clk 00:10:05]} {[%emt 00:00:12]} 9. Nbd2 {[%clk
00:10:29]} {[%emt 00:00:02]} c5 {[%clk 00:10:00]} {[%emt 00:00:10]} 10. e3
{[%clk 00:10:32]} {[%emt 00:00:01]} Qc7 {[%clk 00:09:42]} {[%emt 00:00:23]} 11.
Qe2 {[%clk 00:10:34]} {[%emt 00:00:04]} Rac8 {[%clk 00:09:09]} {[%emt
00:00:38]} 12. Rac1 {[%clk 00:10:35]} {[%emt 00:00:03]} Qb8 {[%clk 00:09:11]}
{[%emt 00:00:04]} 13. Rfd1 {[%clk 00:10:38]} {[%emt 00:00:01]} Rfd8 {[%clk
00:09:13]} {[%emt 00:00:04]} 14. cxd5 {[%clk 00:10:10]} {[%emt 00:00:32]} Nxd5
{[%clk 00:09:07]} {[%emt 00:00:11]} 15. a3 {[%clk 00:10:12]} {[%emt 00:00:04]}
Bf6 {[%clk 00:09:04]} {[%emt 00:00:08]} 16. Nc4 {[%clk 00:10:03]} {[%emt
00:00:14]} Ne7 {[%clk 00:08:32]} {[%emt 00:00:36]} 17. d4 {[%clk 00:09:12]}
{[%emt 00:00:57]} cxd4 {[%clk 00:08:28]} {[%emt 00:00:09]} 18. Bxd4 {[%clk
00:09:08]} {[%emt 00:00:09]} Bxf3 {[%clk 00:07:35]} {[%emt 00:00:58]} 19. Bxf3
{[%clk 00:08:45]} {[%emt 00:00:28]} Bxd4 {[%clk 00:07:38]} {[%emt 00:00:01]} 20.
Rxd4 {[%clk 00:08:20]} {[%emt 00:00:30]} b5 {[%clk 00:06:15]} {[%emt 00:01:28]}
21. Rcd1 {[%clk 00:08:19]} {[%emt 00:00:06]} bxc4 {[%clk 00:04:42]} {[%emt
00:01:38]} 22. Rxd7 {[%clk 00:08:22]} Rxd7 {[%clk 00:03:47]} {[%emt 00:01:01]}
23. Rxd7 {[%clk 00:08:25]} {[%emt 00:00:02]} c3 {[%clk 00:02:36]} {[%emt
00:01:17]} 24. Rxe7 {[%clk 00:07:08]} {[%emt 00:01:21]} c2 {[%clk 00:02:34]}
{[%emt 00:00:08]} 25. Re8+ {[%clk 00:07:12]} Rxe8 {[%clk 00:02:33]} {[%emt
00:00:06]} 26. Qxc2 {[%clk 00:07:16]} Rc8 {[%clk 00:02:24]} {[%emt 00:00:15]}
27. Qd3 {[%clk 00:07:11]} {[%emt 00:00:10]} Rc1+ {[%clk 00:02:06]} {[%emt
00:00:23]} 28. Kg2 {[%clk 00:07:14]} {[%emt 00:00:01]} g6 {[%clk 00:01:50]}
{[%emt 00:00:21]} 29. h4 {[%clk 00:07:00]} {[%emt 00:00:19]} h5 {[%clk
00:01:49]} {[%emt 00:00:06]} 30. b4 {[%clk 00:05:13]} {[%emt 00:01:53]} Qc7
{[%clk 00:01:45]} {[%emt 00:00:08]} 31. Qd4 {[%clk 00:04:51]} {[%emt 00:00:27]}
Rc3 {[%clk 00:01:25]} {[%emt 00:00:25]} 32. g4 {[%clk 00:03:30]} {[%emt
00:01:26]} Rc4 {[%clk 00:01:09]} {[%emt 00:00:21]} 33. Qd3 {[%clk 00:02:37]}
{[%emt 00:00:58]} hxg4 {[%clk 00:01:07]} {[%emt 00:00:08]} 34. Be2 {[%clk
00:02:41]} Rc3 {[%clk 00:01:06]} {[%emt 00:00:07]} 35. Qd4 {[%clk 00:02:07]}
{[%emt 00:00:38]} Rxa3 {[%clk 00:00:39]} {[%emt 00:00:32]} 36. Qxg4 {[%clk
00:02:07]} {[%emt 00:00:05]} Qe5 {[%clk 00:00:29]} {[%emt 00:00:16]} 37. Bf3
{[%clk 00:01:06]} {[%emt 00:01:06]} Ra2 {[%clk 00:00:24]} {[%emt 00:00:09]} 38.
Qc4 {[%clk 00:01:08]} {[%emt 00:00:03]} Qb2 {[%clk 00:00:17]} {[%emt 00:00:12]}
39. Qf1 {[%clk 00:01:12]} {[%emt 00:00:02]} Qxb4 {[%clk 00:00:19]} {[%emt
00:00:03]} 40. h5 {[%clk 00:01:16]} gxh5 {[%clk 00:00:18]} {[%emt 00:00:06]} 41.
Qd3 {[%clk 00:01:06]} {[%emt 00:00:13]} Qd2 {[%clk 00:00:16]} {[%emt 00:00:08]}
42. Qf1 {[%clk 00:00:47]} {[%emt 00:00:24]} Qxe3 {[%clk 00:00:17]} {[%emt
00:00:04]} 43. Ba8 {[%clk 00:00:21]} {[%emt 00:00:31]} Qg5+ {[%clk 00:00:17]}
{[%emt 00:00:04]} 44. Kh2 {[%clk 00:00:18]} {[%emt 00:00:08]} Ra4 {[%clk
00:00:17]} {[%emt 00:00:05]} 45. Bg2 {[%clk 00:00:20]} {[%emt 00:00:04]} Rh4+
{[%clk 00:00:19]} {[%emt 00:00:04]} 46. Bh3 {[%clk 00:00:24]} Qg4 {[%clk
00:00:20]} {[%emt 00:00:04]} 0-1

[Event "Pervenstvo PFO 2023_Y19_Rapid"]
[Site "Samara region, Russia"]
[Date "2023.11.11"]
[Round "7.2"]
[White "Galyaviev, Samat"]
[Black "Ivanov, Matvei"]
[Result "1/2-1/2"]
[TimeControl "10:5"]
[WhiteFideId "44168470"]
[BlackFideId "54131987"]
[WhiteElo "2030"]
[BlackElo "1918"]

1. d4 {[%clk 00:10:09]} Nf6 {[%clk 00:10:09]} {[%emt 00:00:01]} 2. Nf3 {[%clk
00:10:13]} {[%emt 00:00:01]} c5 {[%clk 00:10:00]} {[%emt 00:00:15]} 3. d5
{[%clk 00:10:17]} b5 {[%clk 00:10:04]} 4. Bg5 {[%clk 00:10:21]} Qb6 {[%clk
00:10:09]} 5. a4 {[%clk 00:10:23]} {[%emt 00:00:03]} b4 {[%clk 00:10:13]} 6. e3
{[%clk 00:10:27]} a5 {[%clk 00:10:17]} {[%emt 00:00:02]} 7. Bb5 {[%clk
00:10:28]} {[%emt 00:00:04]} Bb7 {[%clk 00:09:55]} {[%emt 00:00:27]} 8. c4
{[%clk 00:09:48]} {[%emt 00:00:44]} g6 {[%clk 00:09:27]} {[%emt 00:00:34]} 9.
Nbd2 {[%clk 00:09:34]} {[%emt 00:00:19]} Bg7 {[%clk 00:08:56]} {[%emt
00:00:36]} 10. e4 {[%clk 00:09:38]} {[%emt 00:00:01]} h6 {[%clk 00:08:53]}
{[%emt 00:00:08]} 11. Bxf6 {[%clk 00:09:00]} {[%emt 00:00:42]} exf6 {[%clk
00:08:18]} {[%emt 00:00:40]} 12. O-O {[%clk 00:08:44]} {[%emt 00:00:21]} O-O
{[%clk 00:08:22]} {[%emt 00:00:02]} 13. Re1 {[%clk 00:08:25]} {[%emt 00:00:23]}
d6 {[%clk 00:08:23]} {[%emt 00:00:04]} 14. Nf1 {[%clk 00:08:09]} {[%emt
00:00:22]} Bc8 {[%clk 00:08:12]} {[%emt 00:00:15]} 15. h4 {[%clk 00:07:24]}
{[%emt 00:00:50]} h5 {[%clk 00:07:12]} {[%emt 00:01:05]} 16. N3h2 {[%clk
00:06:59]} {[%emt 00:00:30]} f5 {[%clk 00:07:04]} {[%emt 00:00:14]} 17. exf5
{[%clk 00:06:49]} {[%emt 00:00:15]} Bxf5 {[%clk 00:07:01]} {[%emt 00:00:07]} 18.
Ne3 {[%clk 00:06:42]} {[%emt 00:00:12]} Bc8 {[%clk 00:06:09]} {[%emt 00:00:57]}
19. Kh1 {[%clk 00:04:07]} {[%emt 00:02:40]} Qd8 {[%clk 00:06:08]} {[%emt
00:00:07]} 20. g3 {[%clk 00:03:30]} {[%emt 00:00:43]} Bxb2 {[%clk 00:06:03]}
{[%emt 00:00:09]} 21. Ra2 {[%clk 00:03:33]} {[%emt 00:00:02]} Bc3 {[%clk
00:06:01]} {[%emt 00:00:06]} 22. f4 {[%clk 00:03:12]} {[%emt 00:00:27]} Bxe1
{[%clk 00:03:54]} {[%emt 00:02:12]} 23. Qxe1 {[%clk 00:03:15]} {[%emt
00:00:01]} f5 {[%clk 00:03:58]} 24. Nf3 {[%clk 00:02:50]} {[%emt 00:00:30]} Ra7
{[%clk 00:04:00]} {[%emt 00:00:04]} 25. Ng5 {[%clk 00:02:20]} {[%emt 00:00:35]}
Re7 {[%clk 00:03:54]} {[%emt 00:00:11]} 26. Re2 {[%clk 00:02:23]} {[%emt
00:00:02]} Rf6 {[%clk 00:02:12]} {[%emt 00:01:47]} 27. Ng4 {[%clk 00:01:53]}
{[%emt 00:00:35]} Rxe2 {[%clk 00:00:36]} {[%emt 00:01:41]} 28. Nxf6+ {[%clk
00:01:56]} {[%emt 00:00:02]} Qxf6 {[%clk 00:00:40]} {[%emt 00:00:02]} 29. Qxe2
{[%clk 00:02:00]} Bd7 {[%clk 00:00:15]} {[%emt 00:00:29]} 30. Bxd7 {[%clk
00:01:38]} Nxd7 {[%clk 00:00:19]} 31. Qe8+ {[%clk 00:01:42]} {[%emt 00:00:01]}
Nf8 {[%clk 00:00:24]} 32. Ne6 {[%clk 00:01:34]} {[%emt 00:00:13]} b3 {[%clk
00:00:21]} {[%emt 00:00:08]} 33. Nxf8 {[%clk 00:01:16]} {[%emt 00:00:22]} Qxf8
{[%clk 00:00:22]} {[%emt 00:00:04]} 34. Qxg6+ {[%clk 00:00:57]} {[%emt
00:00:25]} Qg7 {[%clk 00:00:22]} {[%emt 00:00:06]} 35. Qe8+ {[%clk 00:00:59]}
{[%emt 00:00:02]} Kh7 {[%clk 00:00:10]} {[%emt 00:00:17]} 36. Qxh5+ {[%clk
00:01:01]} {[%emt 00:00:03]} Kg8 {[%clk 00:00:14]} 37. Qe8+ {[%clk 00:00:39]}
{[%emt 00:00:27]} Kh7 {[%clk 00:00:18]} 1/2-1/2

[Event "Pervenstvo PFO 2023_Y19_Rapid"]
[Site "Samara region, Russia"]
[Date "2023.11.11"]
[Round "7.3"]
[White "Mochalov, Dmitriy"]
[Black "Azizyan, Levon"]
[Result "1-0"]
[TimeControl "10:5"]
[WhiteFideId "44179634"]
[BlackFideId "44151888"]
[WhiteElo "2194"]
[BlackElo "1940"]

1. e4 {[%clk 00:10:08]} {[%emt 00:00:01]} c5 {[%clk 00:10:08]} {[%emt
00:00:03]} 2. Nf3 {[%clk 00:10:09]} {[%emt 00:00:04]} d6 {[%clk 00:10:12]} 3.
Bb5+ {[%clk 00:10:11]} {[%emt 00:00:03]} Bd7 {[%clk 00:10:15]} {[%emt
00:00:02]} 4. Bxd7+ {[%clk 00:10:13]} {[%emt 00:00:02]} Nxd7 {[%clk 00:10:18]}
{[%emt 00:00:02]} 5. O-O {[%clk 00:10:15]} {[%emt 00:00:02]} Ngf6 {[%clk
00:10:22]} {[%emt 00:00:02]} 6. Re1 {[%clk 00:10:18]} {[%emt 00:00:02]} g6
{[%clk 00:10:23]} {[%emt 00:00:04]} 7. c3 {[%clk 00:10:16]} {[%emt 00:00:07]}
Bg7 {[%clk 00:10:00]} {[%emt 00:00:28]} 8. d4 {[%clk 00:10:20]} {[%emt
00:00:02]} O-O {[%clk 00:09:28]} {[%emt 00:00:36]} 9. e5 {[%clk 00:09:53]}
{[%emt 00:00:32]} dxe5 {[%clk 00:09:31]} {[%emt 00:00:01]} 10. dxe5 {[%clk
00:09:57]} {[%emt 00:00:02]} Ng4 {[%clk 00:09:35]} 11. e6 {[%clk 00:10:01]}
{[%emt 00:00:01]} Nde5 {[%clk 00:09:40]} 12. Nxe5 {[%clk 00:09:28]} {[%emt
00:00:39]} Qxd1 {[%clk 00:08:32]} {[%emt 00:01:12]} 13. Rxd1 {[%clk 00:09:28]}
{[%emt 00:00:06]} Bxe5 {[%clk 00:07:09]} {[%emt 00:01:28]} 14. h3 {[%clk
00:09:23]} {[%emt 00:00:10]} Nf6 {[%clk 00:06:14]} {[%emt 00:01:00]} 15. Re1
{[%clk 00:09:24]} {[%emt 00:00:04]} Bc7 {[%clk 00:05:55]} {[%emt 00:00:24]} 16.
Bh6 {[%clk 00:09:07]} {[%emt 00:00:22]} Rfd8 {[%clk 00:05:44]} {[%emt
00:00:16]} 17. exf7+ {[%clk 00:09:10]} {[%emt 00:00:03]} Kxf7 {[%clk 00:05:47]}
{[%emt 00:00:01]} 18. Nd2 {[%clk 00:09:11]} {[%emt 00:00:03]} Rd5 {[%clk
00:05:20]} {[%emt 00:00:29]} 19. Nf3 {[%clk 00:09:14]} {[%emt 00:00:04]} Ng8
{[%clk 00:03:26]} {[%emt 00:02:00]} 20. Be3 {[%clk 00:08:52]} {[%emt 00:00:27]}
h6 {[%clk 00:03:09]} {[%emt 00:00:22]} 21. c4 {[%clk 00:08:47]} {[%emt
00:00:10]} Rf5 {[%clk 00:03:13]} {[%emt 00:00:01]} 22. Rad1 {[%clk 00:08:51]}
{[%emt 00:00:02]} Bd6 {[%clk 00:03:00]} {[%emt 00:00:18]} 23. Bd2 {[%clk
00:08:53]} {[%emt 00:00:03]} g5 {[%clk 00:02:46]} {[%emt 00:00:18]} 24. Bc3
{[%clk 00:08:57]} {[%emt 00:00:02]} Nf6 {[%clk 00:02:28]} {[%emt 00:00:22]} 25.
Ne5+ {[%clk 00:08:59]} {[%emt 00:00:03]} Bxe5 {[%clk 00:02:28]} {[%emt
00:00:05]} 26. Bxe5 {[%clk 00:09:02]} {[%emt 00:00:02]} Rc8 {[%clk 00:02:03]}
{[%emt 00:00:30]} 27. g4 {[%clk 00:09:01]} {[%emt 00:00:06]} 1-0

[Event "Pervenstvo PFO 2023_Y19_Rapid"]
[Site "Samara region, Russia"]
[Date "2023.11.11"]
[Round "7.4"]
[White "Sadykov, Ilgiz A."]
[Black "Tarasenko, Iaroslav"]
[Result "1-0"]
[TimeControl "10:5"]
[WhiteFideId "34286217"]
[BlackFideId "44196008"]
[WhiteElo "1675"]
[BlackElo "2080"]

1. d4 {[%clk 00:10:09]} {[%emt 00:01:41]} Nf6 {[%clk 00:10:09]} {[%emt
00:00:01]} 2. c4 {[%clk 00:10:14]} e6 {[%clk 00:10:14]} {[%emt 00:00:01]} 3.
Nf3 {[%clk 00:10:16]} {[%emt 00:00:02]} b6 {[%clk 00:10:14]} {[%emt 00:00:05]}
4. e3 {[%clk 00:10:20]} Bb7 {[%clk 00:10:15]} {[%emt 00:00:04]} 5. Be2 {[%clk
00:10:21]} {[%emt 00:00:03]} Be7 {[%clk 00:10:13]} {[%emt 00:00:08]} 6. O-O
{[%clk 00:10:24]} {[%emt 00:00:02]} O-O {[%clk 00:10:16]} {[%emt 00:00:02]} 7.
b3 {[%clk 00:10:28]} d5 {[%clk 00:10:15]} {[%emt 00:00:06]} 8. Bb2 {[%clk
00:10:32]} {[%emt 00:00:01]} Nbd7 {[%clk 00:10:16]} {[%emt 00:00:04]} 9. Nbd2
{[%clk 00:10:13]} {[%emt 00:00:24]} Rc8 {[%clk 00:10:18]} {[%emt 00:00:04]} 10.
Rc1 {[%clk 00:10:09]} {[%emt 00:00:09]} c5 {[%clk 00:10:14]} {[%emt 00:00:08]}
11. a3 {[%clk 00:10:03]} {[%emt 00:00:12]} h6 {[%clk 00:10:07]} {[%emt
00:00:12]} 12. dxc5 {[%clk 00:10:04]} {[%emt 00:00:03]} Nxc5 {[%clk 00:10:06]}
{[%emt 00:00:07]} 13. b4 {[%clk 00:10:07]} {[%emt 00:00:01]} Nce4 {[%clk
00:10:08]} {[%emt 00:00:03]} 14. Nxe4 {[%clk 00:10:04]} {[%emt 00:00:08]} Nxe4
{[%clk 00:10:05]} {[%emt 00:00:08]} 15. Qb3 {[%clk 00:10:04]} {[%emt 00:00:05]}
Bf6 {[%clk 00:09:26]} {[%emt 00:00:44]} 16. Rfd1 {[%clk 00:09:54]} {[%emt
00:00:15]} Qe7 {[%clk 00:09:22]} {[%emt 00:00:09]} 17. Ne5 {[%clk 00:09:16]}
{[%emt 00:00:43]} Rfd8 {[%clk 00:08:06]} {[%emt 00:01:21]} 18. f3 {[%clk
00:08:36]} {[%emt 00:00:45]} Nd6 {[%clk 00:06:38]} {[%emt 00:01:32]} 19. c5
{[%clk 00:08:18]} {[%emt 00:00:24]} bxc5 {[%clk 00:06:42]} {[%emt 00:00:01]} 20.
bxc5 {[%clk 00:08:22]} Nf5 {[%clk 00:06:46]} {[%emt 00:00:01]} 21. c6 {[%clk
00:07:58]} {[%emt 00:00:29]} Ba8 {[%clk 00:06:35]} {[%emt 00:00:16]} 22. Bb5
{[%clk 00:07:24]} {[%emt 00:00:39]} Nd6 {[%clk 00:04:38]} {[%emt 00:02:02]} 23.
a4 {[%clk 00:06:57]} {[%emt 00:00:32]} Rc7 {[%clk 00:04:34]} {[%emt 00:00:09]}
24. f4 {[%clk 00:06:45]} {[%emt 00:00:16]} Rb8 {[%clk 00:03:51]} {[%emt
00:00:49]} 25. Ba3 {[%clk 00:06:22]} {[%emt 00:00:29]} a6 {[%clk 00:03:49]}
{[%emt 00:00:07]} 26. Nd7 {[%clk 00:06:18]} {[%emt 00:00:08]} Rxd7 {[%clk
00:03:17]} {[%emt 00:00:36]} 27. cxd7 {[%clk 00:06:22]} {[%emt 00:00:02]} axb5
{[%clk 00:03:21]} {[%emt 00:00:02]} 28. Rc8+ {[%clk 00:06:24]} {[%emt
00:00:03]} Nxc8 {[%clk 00:03:00]} {[%emt 00:00:26]} 29. dxc8=Q+ {[%clk
00:06:21]} {[%emt 00:00:07]} Rxc8 {[%clk 00:03:03]} {[%emt 00:00:01]} 30. Bxe7
Bxe7 {[%clk 00:03:07]} 31. axb5 {[%clk 00:06:26]} {[%emt 00:00:03]} Bc5 {[%clk
00:02:46]} {[%emt 00:00:26]} 32. Kf1 {[%clk 00:05:03]} {[%emt 00:01:29]} Bb7
{[%clk 00:02:32]} {[%emt 00:00:19]} 33. Rc1 {[%clk 00:05:02]} {[%emt 00:00:05]}
Kf8 {[%clk 00:02:34]} {[%emt 00:00:04]} 34. Rxc5 {[%clk 00:05:04]} {[%emt
00:00:02]} Rxc5 {[%clk 00:02:37]} {[%emt 00:00:02]} 35. Qb4 {[%clk 00:05:08]}
1-0